[Event "Early-Titled-Tuesday-Blitz-July-09-2024"]
[Site "Chess.com"]
[Date "2024.07.09"]
[Round "7"]
[White "abelmat"]
[Black "Austen48"]
[Result "1/2-1/2"]
[WhiteElo "2117"]
[BlackElo "2271"]
[TimeControl "180+1"]
[EndTime "9:20:40 PDT"]
[Termination "Game drawn by repetition"]

1. d4 {[%clk 0:03:00.9]} 1... Nf6 {[%clk 0:02:57.6]} 2. c4 {[%clk 0:02:59.7]}
2... e6 {[%clk 0:02:57.4]} 3. Nf3 {[%clk 0:02:59.3]} 3... Bb4+ {[%clk
0:02:55.6]} 4. Nc3 {[%clk 0:02:59.3]} 4... O-O {[%clk 0:02:53.8]} 5. Qc2 {[%clk
0:02:58.2]} 5... d5 {[%clk 0:02:48.8]} 6. Bg5 {[%clk 0:02:54.5]} 6... c5 {[%clk
0:02:39.3]} 7. e3 {[%clk 0:02:54.3]} 7... Nc6 {[%clk 0:02:35.1]} 8. cxd5 {[%clk
0:02:49.4]} 8... exd5 {[%clk 0:02:30.5]} 9. Be2 {[%clk 0:02:40.7]} 9... cxd4
{[%clk 0:02:26.4]} 10. exd4 {[%clk 0:02:38]} 10... h6 {[%clk 0:02:22.6]} 11. Bh4
{[%clk 0:02:28.7]} 11... Re8 {[%clk 0:02:15.4]} 12. O-O {[%clk 0:02:26.6]} 12...
Be7 {[%clk 0:02:13.3]} 13. Rfe1 {[%clk 0:02:19.2]} 13... Bg4 {[%clk 0:02:12.5]}
14. Rad1 {[%clk 0:02:16.6]} 14... Rc8 {[%clk 0:02:08.9]} 15. h3 {[%clk 0:02:11]}
15... Bh5 {[%clk 0:02:07.3]} 16. Qb3 {[%clk 0:02:04.7]} 16... Na5 {[%clk
0:01:55]} 17. Qa4 {[%clk 0:01:51.6]} 17... a6 {[%clk 0:01:49.4]} 18. Ne5 {[%clk
0:01:41.2]} 18... Bxe2 {[%clk 0:01:47.6]} 19. Rxe2 {[%clk 0:01:38.3]} 19... Nc4
{[%clk 0:01:42.1]} 20. Nxc4 {[%clk 0:01:24.2]} 20... Rxc4 {[%clk 0:01:40.2]} 21.
Qb3 {[%clk 0:01:13.3]} 21... Rb4 {[%clk 0:01:36.6]} 22. Qc2 {[%clk 0:01:12.7]}
22... Ne4 {[%clk 0:01:34.3]} 23. Bxe7 {[%clk 0:01:02.3]} 23... Rxe7 {[%clk
0:01:34]} 24. Rde1 {[%clk 0:00:45.8]} 24... Rc7 {[%clk 0:01:07.2]} 25. f3 {[%clk
0:00:41.8]} 25... Nf6 {[%clk 0:01:06.8]} 26. Qd3 {[%clk 0:00:20.3]} 26... Rc8
{[%clk 0:01:00.9]} 27. h4 {[%clk 0:00:18.2]} 27... Rbc4 {[%clk 0:00:57.4]} 28.
Qf5 {[%clk 0:00:17.6]} 28... g6 {[%clk 0:00:55.3]} 29. Qf4 {[%clk 0:00:17]}
29... Kg7 {[%clk 0:00:54.6]} 30. Qe5 {[%clk 0:00:17]} 30... Qc7 {[%clk
0:00:47.7]} 31. Qxc7 {[%clk 0:00:14.9]} 31... R8xc7 {[%clk 0:00:47.1]} 32. Rd2
{[%clk 0:00:14.6]} 32... b5 {[%clk 0:00:46.9]} 33. Re5 {[%clk 0:00:14.6]} 33...
Rd7 {[%clk 0:00:43.9]} 34. a3 {[%clk 0:00:13.9]} 34... h5 {[%clk 0:00:32.1]} 35.
Kf2 {[%clk 0:00:13.4]} 35... Rc6 {[%clk 0:00:28.9]} 36. Rde2 {[%clk 0:00:12.5]}
36... Rcd6 {[%clk 0:00:29.3]} 37. Re7 {[%clk 0:00:11.6]} 37... Kf8 {[%clk
0:00:18.3]} 38. Rxd7 {[%clk 0:00:11.3]} 38... Rxd7 {[%clk 0:00:18.5]} 39. Re5
{[%clk 0:00:11.2]} 39... Kg7 {[%clk 0:00:17.5]} 40. Ke3 {[%clk 0:00:11]} 40...
Kf8 {[%clk 0:00:16.7]} 41. Kf4 {[%clk 0:00:10.8]} 41... Kg7 {[%clk 0:00:16.8]}
42. Kg5 {[%clk 0:00:10]} 42... Nh7+ {[%clk 0:00:16.5]} 43. Kf4 {[%clk
0:00:09.6]} 43... Nf6 {[%clk 0:00:17.1]} 44. Ke3 {[%clk 0:00:09.5]} 44... Rd6
{[%clk 0:00:16.4]} 45. Kd3 {[%clk 0:00:09.3]} 45... Kf8 {[%clk 0:00:14.8]} 46.
Ke3 {[%clk 0:00:08.9]} 46... Re6 {[%clk 0:00:13.7]} 47. Kf4 {[%clk 0:00:08.8]}
47... Rd6 {[%clk 0:00:09.8]} 48. Ke3 {[%clk 0:00:08.1]} 48... Kg7 {[%clk
0:00:08.8]} 49. Kf4 {[%clk 0:00:07.3]} 49... Kf8 {[%clk 0:00:08.7]} 50. Ke3
{[%clk 0:00:07.3]} 1/2-1/2

[Event "Early-Titled-Tuesday-Blitz-July-09-2024"]
[Site "Chess.com"]
[Date "2024.07.09"]
[Round "7"]
[White "vi_pranav"]
[Black "maciek_92"]
[Result "0-1"]
[WhiteElo "2999"]
[BlackElo "2844"]
[TimeControl "180+1"]
[EndTime "9:20:42 PDT"]
[Termination "maciek_92 won on time"]

1. Nf3 {[%clk 0:03:00.9]} 1... b6 {[%clk 0:03:00.9]} 2. g3 {[%clk 0:03:00.1]}
2... Bb7 {[%clk 0:03:01.4]} 3. Bg2 {[%clk 0:03:00.2]} 3... f5 {[%clk 0:03:00.1]}
4. O-O {[%clk 0:02:58.5]} 4... Nf6 {[%clk 0:03:00.7]} 5. d3 {[%clk 0:02:58.9]}
5... e6 {[%clk 0:02:56.3]} 6. Nbd2 {[%clk 0:02:47.4]} 6... Bc5 {[%clk
0:02:52.9]} 7. e4 {[%clk 0:02:28.4]} 7... fxe4 {[%clk 0:02:49.2]} 8. Ng5 {[%clk
0:02:26.1]} 8... O-O {[%clk 0:02:26]} 9. Ndxe4 {[%clk 0:02:24.9]} 9... Nc6
{[%clk 0:02:20.2]} 10. Nxc5 {[%clk 0:02:03.7]} 10... bxc5 {[%clk 0:02:21.1]} 11.
Be3 {[%clk 0:02:03.6]} 11... h6 {[%clk 0:02:19.2]} 12. Ne4 {[%clk 0:01:59.6]}
12... d6 {[%clk 0:02:16.1]} 13. c3 {[%clk 0:01:54.9]} 13... Qe7 {[%clk
0:02:06.8]} 14. Nxf6+ {[%clk 0:01:39.9]} 14... Rxf6 {[%clk 0:02:06.4]} 15. Qa4
{[%clk 0:01:40.3]} 15... Nd8 {[%clk 0:02:00]} 16. Bxb7 {[%clk 0:01:35.6]} 16...
Nxb7 {[%clk 0:02:00.9]} 17. Rfe1 {[%clk 0:01:35.8]} 17... Nd8 {[%clk 0:01:42.2]}
18. d4 {[%clk 0:01:16.7]} 18... cxd4 {[%clk 0:01:37.6]} 19. Bxd4 {[%clk
0:01:17.2]} 19... Rf5 {[%clk 0:01:34.4]} 20. Qc4 {[%clk 0:01:12.6]} 20... Kh8
{[%clk 0:01:23.4]} 21. Qd3 {[%clk 0:01:11.4]} 21... Qf7 {[%clk 0:01:17.9]} 22.
f4 {[%clk 0:00:57.1]} 22... a5 {[%clk 0:01:14.7]} 23. c4 {[%clk 0:00:53.3]}
23... Nc6 {[%clk 0:01:00.2]} 24. Bc3 {[%clk 0:00:51.8]} 24... Re8 {[%clk
0:00:49.5]} 25. b3 {[%clk 0:00:47]} 25... Nb8 {[%clk 0:00:44.7]} 26. Re2 {[%clk
0:00:42.6]} 26... Nd7 {[%clk 0:00:45.4]} 27. Rae1 {[%clk 0:00:42.8]} 27... e5
{[%clk 0:00:32]} 28. Bxa5 {[%clk 0:00:28.7]} 28... e4 {[%clk 0:00:31.8]} 29. Qd2
{[%clk 0:00:23.4]} 29... Nf6 {[%clk 0:00:26.7]} 30. Bc3 {[%clk 0:00:23.4]} 30...
d5 {[%clk 0:00:22.6]} 31. Qd4 {[%clk 0:00:20.5]} 31... c6 {[%clk 0:00:19.3]} 32.
cxd5 {[%clk 0:00:18.5]} 32... cxd5 {[%clk 0:00:20.2]} 33. Rc2 {[%clk 0:00:13.6]}
33... Qg6 {[%clk 0:00:18.7]} 34. Bb2 {[%clk 0:00:11.7]} 34... Rxf4 {[%clk
0:00:17.7]} 35. Rc7 {[%clk 0:00:11.4]} 35... Rf3 {[%clk 0:00:16.5]} 36. Rc6
{[%clk 0:00:07.9]} 36... Rf8 {[%clk 0:00:09.6]} 37. Re3 {[%clk 0:00:06.8]} 37...
Qg4 {[%clk 0:00:05.6]} 38. Rxf3 {[%clk 0:00:03.6]} 38... Qxf3 {[%clk 0:00:06.5]}
39. Rc3 {[%clk 0:00:02.9]} 39... Qg4 {[%clk 0:00:06.2]} 40. Rc2 {[%clk
0:00:02.8]} 40... Nh5 {[%clk 0:00:06.1]} 41. Rg2 {[%clk 0:00:02.2]} 41... Rf3
{[%clk 0:00:04.7]} 42. Qxd5 {[%clk 0:00:02.4]} 42... e3 {[%clk 0:00:04.9]} 43.
Qd8+ {[%clk 0:00:01.9]} 43... Kh7 {[%clk 0:00:05.6]} 44. Qd3+ {[%clk 0:00:02.5]}
44... Kh8 {[%clk 0:00:06.3]} 45. Re2 {[%clk 0:00:02.3]} 45... Qh3 {[%clk
0:00:05]} 46. Qd8+ {[%clk 0:00:01.8]} 46... Kh7 {[%clk 0:00:05.2]} 47. Qd3+
{[%clk 0:00:02.7]} 47... Kh8 {[%clk 0:00:05.8]} 48. Rxe3 {[%clk 0:00:03.2]}
48... Rf8 {[%clk 0:00:05.8]} 49. Re6 {[%clk 0:00:03]} 49... Nf4 {[%clk
0:00:04.6]} 0-1

[Event "Early-Titled-Tuesday-Blitz-July-09-2024"]
[Site "Chess.com"]
[Date "2024.07.09"]
[Round "7"]
[White "SharathRk6"]
[Black "Sadykov_Ramil"]
[Result "0-1"]
[WhiteElo "2453"]
[BlackElo "2623"]
[TimeControl "180+1"]
[EndTime "9:20:46 PDT"]
[Termination "Sadykov_Ramil won by resignation"]

1. e4 {[%clk 0:03:00.9]} 1... d6 {[%clk 0:02:52.2]} 2. d4 {[%clk 0:02:59.5]}
2... Nc6 {[%clk 0:02:45.6]} 3. Nf3 {[%clk 0:02:58.5]} 3... Bg4 {[%clk
0:02:42.2]} 4. Be3 {[%clk 0:02:51.3]} 4... Nf6 {[%clk 0:02:36]} 5. Nc3 {[%clk
0:02:49.4]} 5... g6 {[%clk 0:02:32.2]} 6. h3 {[%clk 0:02:47.6]} 6... Bxf3 {[%clk
0:02:30.6]} 7. Qxf3 {[%clk 0:02:48.5]} 7... e5 {[%clk 0:02:28.3]} 8. d5 {[%clk
0:02:45.4]} 8... Nd4 {[%clk 0:02:27.8]} 9. Bxd4 {[%clk 0:02:39.3]} 9... exd4
{[%clk 0:02:28]} 10. Ne2 {[%clk 0:02:39.9]} 10... Qe7 {[%clk 0:02:08]} 11. Nxd4
{[%clk 0:02:35]} 11... Qxe4+ {[%clk 0:01:59.6]} 12. Qxe4+ {[%clk 0:02:32.5]}
12... Nxe4 {[%clk 0:02:00.5]} 13. Bb5+ {[%clk 0:02:32.2]} 13... Kd8 {[%clk
0:02:01]} 14. O-O {[%clk 0:02:29.8]} 14... Bg7 {[%clk 0:02:00.4]} 15. Rad1
{[%clk 0:02:24.9]} 15... a6 {[%clk 0:01:59.1]} 16. Ba4 {[%clk 0:02:10.4]} 16...
Nc5 {[%clk 0:01:53.7]} 17. Bb3 {[%clk 0:02:04.3]} 17... Nxb3 {[%clk 0:01:49.2]}
18. axb3 {[%clk 0:01:53]} 18... Re8 {[%clk 0:01:17.7]} 19. c3 {[%clk 0:01:39]}
19... Kd7 {[%clk 0:01:15.8]} 20. Rd2 {[%clk 0:01:24.4]} 20... Re5 {[%clk
0:01:11.9]} 21. Nf3 {[%clk 0:01:22.4]} 21... Re7 {[%clk 0:01:11.4]} 22. Re1
{[%clk 0:01:20.7]} 22... Rxe1+ {[%clk 0:01:05.1]} 23. Nxe1 {[%clk 0:01:21.6]}
23... a5 {[%clk 0:01:00.1]} 24. Kf1 {[%clk 0:01:09.8]} 24... a4 {[%clk
0:00:58.9]} 25. bxa4 {[%clk 0:01:09.4]} 25... Rxa4 {[%clk 0:00:59.4]} 26. Nf3
{[%clk 0:01:09.6]} 26... Bf6 {[%clk 0:00:46.4]} 27. Ke2 {[%clk 0:00:59.9]} 27...
h5 {[%clk 0:00:39.7]} 28. Ne1 {[%clk 0:00:43.1]} 28... c6 {[%clk 0:00:34.5]} 29.
dxc6+ {[%clk 0:00:42.6]} 29... bxc6 {[%clk 0:00:33.7]} 30. Nc2 {[%clk
0:00:40.6]} 30... d5 {[%clk 0:00:29.6]} 31. Ne3 {[%clk 0:00:39]} 31... Ke6
{[%clk 0:00:29.1]} 32. g3 {[%clk 0:00:33.1]} 32... g5 {[%clk 0:00:27.9]} 33. g4
{[%clk 0:00:29.4]} 33... h4 {[%clk 0:00:28]} 34. Kf3 {[%clk 0:00:25.9]} 34...
Ra1 {[%clk 0:00:26.3]} 35. Kg2 {[%clk 0:00:24.8]} 35... Be5 {[%clk 0:00:24.8]}
36. Re2 {[%clk 0:00:22.4]} 36... f6 {[%clk 0:00:22.5]} 37. Nc2 {[%clk
0:00:22.7]} 37... Rb1 {[%clk 0:00:21.1]} 38. Nd4+ {[%clk 0:00:22.8]} 38... Kd7
{[%clk 0:00:20.4]} 39. Nf3 {[%clk 0:00:22.2]} 39... Kd6 {[%clk 0:00:18.1]} 40.
Nd2 {[%clk 0:00:19.2]} 40... Rd1 {[%clk 0:00:16.4]} 41. Nb3 {[%clk 0:00:19.2]}
41... c5 {[%clk 0:00:16.5]} 42. Na5 {[%clk 0:00:18.4]} 42... Rb1 {[%clk
0:00:14.3]} 43. Nb3 {[%clk 0:00:15.2]} 43... d4 {[%clk 0:00:10]} 44. cxd4 {[%clk
0:00:14.8]} 44... cxd4 {[%clk 0:00:10.9]} 45. Nd2 {[%clk 0:00:14.8]} 45... Rc1
{[%clk 0:00:09.9]} 46. Ne4+ {[%clk 0:00:14]} 46... Kd5 {[%clk 0:00:10.1]} 47. f3
{[%clk 0:00:11.2]} 47... d3 {[%clk 0:00:09.9]} 48. Rd2 {[%clk 0:00:11.7]} 48...
Kd4 {[%clk 0:00:10.1]} 49. Nf2 {[%clk 0:00:12.3]} 49... Rc2 {[%clk 0:00:03.7]}
50. Rxd3+ {[%clk 0:00:12.2]} 50... Kc4 {[%clk 0:00:04.2]} 51. b3+ {[%clk
0:00:10.3]} 51... Kb4 {[%clk 0:00:04.6]} 52. Kg1 {[%clk 0:00:09.8]} 52... Bc7
{[%clk 0:00:02.9]} 53. Ne4 {[%clk 0:00:10]} 53... Be5 {[%clk 0:00:02.7]} 54. Kh1
{[%clk 0:00:09.6]} 54... Re2 {[%clk 0:00:02.2]} 55. Kg1 {[%clk 0:00:09.5]} 55...
Rb2 {[%clk 0:00:02.3]} 56. Re3 {[%clk 0:00:07.4]} 56... Bd4 {[%clk 0:00:01.8]}
0-1

[Event "Early-Titled-Tuesday-Blitz-July-09-2024"]
[Site "Chess.com"]
[Date "2024.07.09"]
[Round "7"]
[White "Arysya"]
[Black "Zohid6"]
[Result "0-1"]
[WhiteElo "2889"]
[BlackElo "2989"]
[TimeControl "180+1"]
[EndTime "9:20:48 PDT"]
[Termination "Zohid6 won on time"]

1. e4 {[%clk 0:02:59.1]} 1... e5 {[%clk 0:02:59.7]} 2. Nf3 {[%clk 0:02:59]} 2...
Nf6 {[%clk 0:02:59.7]} 3. Nc3 {[%clk 0:02:59.2]} 3... Nc6 {[%clk 0:02:59.7]} 4.
g3 {[%clk 0:02:59.6]} 4... Bc5 {[%clk 0:02:58.7]} 5. Bg2 {[%clk 0:02:59.6]} 5...
d6 {[%clk 0:02:59.2]} 6. O-O {[%clk 0:02:58.6]} 6... a5 {[%clk 0:02:59.3]} 7. d3
{[%clk 0:02:57.1]} 7... O-O {[%clk 0:02:59.2]} 8. h3 {[%clk 0:02:57]} 8... a4
{[%clk 0:02:56.9]} 9. Bg5 {[%clk 0:02:53.8]} 9... h6 {[%clk 0:02:55.7]} 10. Bh4
{[%clk 0:02:53.8]} 10... Nd4 {[%clk 0:02:49.6]} 11. Nd5 {[%clk 0:02:48.6]} 11...
g5 {[%clk 0:02:42]} 12. Nxg5 {[%clk 0:02:31.1]} 12... Nxd5 {[%clk 0:02:39.2]}
13. Qh5 {[%clk 0:02:13.6]} 13... hxg5 {[%clk 0:02:18.9]} 14. Bxg5 {[%clk
0:02:14.5]} 14... Qe8 {[%clk 0:02:04.8]} 15. Bh6 {[%clk 0:02:07.4]} 15... f6
{[%clk 0:01:57.1]} 16. Qd1 {[%clk 0:02:07.2]} 16... Rf7 {[%clk 0:01:55.3]} 17.
c3 {[%clk 0:02:06.2]} 17... Ne7 {[%clk 0:01:43.6]} 18. cxd4 {[%clk 0:01:41.4]}
18... Bxd4 {[%clk 0:01:44.5]} 19. Bc1 {[%clk 0:01:24.7]} 19... Rh7 {[%clk
0:01:37.8]} 20. Rb1 {[%clk 0:01:24.1]} 20... Qf7 {[%clk 0:01:32.5]} 21. Be3
{[%clk 0:01:23.4]} 21... Nc6 {[%clk 0:01:29.2]} 22. a3 {[%clk 0:01:22.5]} 22...
Qg7 {[%clk 0:01:27.3]} 23. Qf3 {[%clk 0:01:20.6]} 23... Bxh3 {[%clk 0:01:24.3]}
24. Bxh3 {[%clk 0:01:21]} 24... Rxh3 {[%clk 0:01:25.2]} 25. Kg2 {[%clk
0:01:21.6]} 25... Rh7 {[%clk 0:01:24.7]} 26. Qf5 {[%clk 0:01:19.3]} 26... Ne7
{[%clk 0:01:18.2]} 27. Qd7 {[%clk 0:01:15.9]} 27... Ng6 {[%clk 0:01:10.8]} 28.
Qe6+ {[%clk 0:01:16.1]} 28... Qf7 {[%clk 0:01:11]} 29. Qf5 {[%clk 0:01:16.6]}
29... Ne7 {[%clk 0:01:08.1]} 30. Qd7 {[%clk 0:01:12.9]} 30... c5 {[%clk
0:01:04.1]} 31. Rh1 {[%clk 0:01:11.2]} 31... Bxe3 {[%clk 0:00:57.1]} 32. Rxh7
{[%clk 0:01:09.7]} 32... Qxh7 {[%clk 0:00:54.2]} 33. fxe3 {[%clk 0:01:05.6]}
33... Nc6 {[%clk 0:00:52.2]} 34. Qg4+ {[%clk 0:00:48.7]} 34... Qg7 {[%clk
0:00:52.1]} 35. Qe6+ {[%clk 0:00:49.3]} 35... Qf7 {[%clk 0:00:51.1]} 36. Qf5
{[%clk 0:00:49.7]} 36... Ne7 {[%clk 0:00:46.1]} 37. Qg4+ {[%clk 0:00:42.4]}
37... Ng6 {[%clk 0:00:46.3]} 38. Rh1 {[%clk 0:00:41.3]} 38... Kg7 {[%clk
0:00:46.5]} 39. Rf1 {[%clk 0:00:35.9]} 39... Rd8 {[%clk 0:00:42.4]} 40. Rf3
{[%clk 0:00:21.8]} 40... b5 {[%clk 0:00:37.1]} 41. Qf5 {[%clk 0:00:20.3]} 41...
Re8 {[%clk 0:00:35]} 42. Rf1 {[%clk 0:00:20.1]} 42... Qe6 {[%clk 0:00:32.3]} 43.
Qf3 {[%clk 0:00:15.1]} 43... Rh8 {[%clk 0:00:32.1]} 44. Rg1 {[%clk 0:00:14.7]}
44... b4 {[%clk 0:00:29.5]} 45. Rf1 {[%clk 0:00:12.3]} 45... bxa3 {[%clk
0:00:24.9]} 46. bxa3 {[%clk 0:00:12.4]} 46... Rb8 {[%clk 0:00:24.7]} 47. Rf2
{[%clk 0:00:07.9]} 47... Rb3 {[%clk 0:00:23.7]} 48. Qd1 {[%clk 0:00:07.3]} 48...
Rxa3 {[%clk 0:00:21.6]} 49. Kh2 {[%clk 0:00:06.6]} 49... Ra2 {[%clk 0:00:21.5]}
50. Rxa2 {[%clk 0:00:03.7]} 50... Qxa2+ {[%clk 0:00:22.4]} 51. Kh3 {[%clk
0:00:04.4]} 51... a3 {[%clk 0:00:20.6]} 52. Qa4 {[%clk 0:00:04.7]} 52... Qe6+
{[%clk 0:00:20.8]} 53. Kg2 {[%clk 0:00:05.1]} 53... a2 {[%clk 0:00:20.7]} 54.
Kf3 {[%clk 0:00:05.6]} 54... Ne7 {[%clk 0:00:20.7]} 55. Qa7 {[%clk 0:00:05.7]}
55... Kf7 {[%clk 0:00:19.8]} 56. g4 {[%clk 0:00:06.1]} 56... Qb3 {[%clk
0:00:19.7]} 57. Qa8 {[%clk 0:00:04]} 57... Qd1+ {[%clk 0:00:19.5]} 58. Kg3
{[%clk 0:00:04]} 58... a1=Q {[%clk 0:00:20.4]} 0-1

[Event "Early-Titled-Tuesday-Blitz-July-09-2024"]
[Site "Chess.com"]
[Date "2024.07.09"]
[Round "7"]
[White "zverr1"]
[Black "klercaku"]
[Result "1-0"]
[WhiteElo "2539"]
[BlackElo "2378"]
[TimeControl "180+1"]
[EndTime "9:20:49 PDT"]
[Termination "zverr1 won by resignation"]

1. e4 {[%clk 0:03:00.9]} 1... e5 {[%clk 0:02:59.1]} 2. Nf3 {[%clk 0:03:00.5]}
2... Nc6 {[%clk 0:02:57.7]} 3. Bc4 {[%clk 0:03:00.8]} 3... Bc5 {[%clk
0:02:55.3]} 4. O-O {[%clk 0:03:00.5]} 4... Nf6 {[%clk 0:02:55.1]} 5. d4 {[%clk
0:03:00.2]} 5... Bxd4 {[%clk 0:02:55.2]} 6. Nxd4 {[%clk 0:03:00.2]} 6... Nxd4
{[%clk 0:02:55.9]} 7. Be3 {[%clk 0:03:00.7]} 7... Ne6 {[%clk 0:02:47]} 8. f4
{[%clk 0:03:00.3]} 8... exf4 {[%clk 0:02:46.9]} 9. e5 {[%clk 0:03:00.3]} 9...
fxe3 {[%clk 0:02:36.7]} 10. exf6 {[%clk 0:03:01.2]} 10... gxf6 {[%clk
0:02:35.7]} 11. Nc3 {[%clk 0:03:01.2]} 11... c6 {[%clk 0:02:34.6]} 12. Ne4
{[%clk 0:03:01.4]} 12... d5 {[%clk 0:02:27.1]} 13. Nxf6+ {[%clk 0:03:01.2]}
13... Ke7 {[%clk 0:02:26.9]} 14. Bxd5 {[%clk 0:03:01.3]} 14... cxd5 {[%clk
0:02:22.1]} 15. Nxd5+ {[%clk 0:03:02.2]} 15... Ke8 {[%clk 0:02:22.1]} 16. Qh5
{[%clk 0:02:58.3]} 16... Rf8 {[%clk 0:02:07.5]} 17. Nf6+ {[%clk 0:02:34.7]}
17... Ke7 {[%clk 0:02:05.6]} 18. Qh4 {[%clk 0:02:28]} 18... e2 {[%clk
0:00:59.8]} 19. Qb4+ {[%clk 0:01:11.4]} 19... Qd6 {[%clk 0:00:52.8]} 20. Nd5+
{[%clk 0:01:11.6]} 20... Kd7 {[%clk 0:00:50]} 21. Qb5+ {[%clk 0:01:11.7]} 21...
Qc6 {[%clk 0:00:25.2]} 22. Qxe2 {[%clk 0:01:09.2]} 22... Qxd5 {[%clk 0:00:09]}
23. Rad1 {[%clk 0:01:03.9]} 23... Nd4 {[%clk 0:00:09.1]} 24. Qf2 {[%clk
0:01:04.6]} 24... Kc7 {[%clk 0:00:05]} 25. Rxd4 {[%clk 0:01:04.1]} 25... Qe5
{[%clk 0:00:05.5]} 26. Re1 {[%clk 0:01:01.9]} 26... Qg5 {[%clk 0:00:04.9]} 27.
h4 {[%clk 0:00:49.8]} 27... Qc5 {[%clk 0:00:02.3]} 28. b4 {[%clk 0:00:27.9]}
28... Qc6 {[%clk 0:00:02.3]} 29. Qf4+ {[%clk 0:00:18.7]} 29... Kb6 {[%clk
0:00:02.2]} 30. Rd6 {[%clk 0:00:19.1]} 30... Be6 {[%clk 0:00:01.8]} 31. Qd4+
{[%clk 0:00:18.2]} 31... Kc7 {[%clk 0:00:01.9]} 32. Rxc6+ {[%clk 0:00:17.8]}
32... bxc6 {[%clk 0:00:02.8]} 33. Qe5+ {[%clk 0:00:17]} 33... Kb7 {[%clk
0:00:02.7]} 34. b5 {[%clk 0:00:12.2]} 34... Rac8 {[%clk 0:00:03.1]} 35. bxc6+
{[%clk 0:00:12.2]} 35... Rxc6 {[%clk 0:00:03.6]} 36. Rb1+ {[%clk 0:00:12.4]}
36... Rb6 {[%clk 0:00:04.3]} 37. Qe4+ {[%clk 0:00:12.5]} 37... Kc7 {[%clk
0:00:04.2]} 38. Rxb6 {[%clk 0:00:11.4]} 38... axb6 {[%clk 0:00:04.3]} 39. Qf4+
{[%clk 0:00:10.9]} 39... Kb7 {[%clk 0:00:04.4]} 40. Qe4+ {[%clk 0:00:10.5]}
40... Ka7 {[%clk 0:00:04.8]} 41. Qxh7 {[%clk 0:00:11.2]} 41... Rc8 {[%clk
0:00:03.8]} 42. h5 {[%clk 0:00:10.5]} 42... Bxa2 {[%clk 0:00:03.8]} 43. h6
{[%clk 0:00:09.5]} 43... Bb1 {[%clk 0:00:04.3]} 44. Qxf7+ {[%clk 0:00:09.2]}
44... Ka6 {[%clk 0:00:03.9]} 45. Qf1+ {[%clk 0:00:07.5]} 45... Kb7 {[%clk
0:00:03.9]} 46. Qxb1 {[%clk 0:00:08.4]} 46... Rh8 {[%clk 0:00:03.5]} 47. Qc1
{[%clk 0:00:07.9]} 47... Rh7 {[%clk 0:00:03.5]} 48. Qg5 {[%clk 0:00:08.2]} 48...
Rc7 {[%clk 0:00:02.9]} 49. Qg7 {[%clk 0:00:09.1]} 49... Ka6 {[%clk 0:00:02.4]}
50. Qxc7 {[%clk 0:00:09.1]} 50... b5 {[%clk 0:00:03.3]} 51. c3 {[%clk
0:00:05.6]} 51... b4 {[%clk 0:00:04.2]} 52. c4 {[%clk 0:00:05.5]} 52... b3
{[%clk 0:00:04]} 53. Qc6+ {[%clk 0:00:04.8]} 53... Ka7 {[%clk 0:00:04.1]} 54. c5
{[%clk 0:00:04.9]} 54... b2 {[%clk 0:00:03.5]} 55. Qb6+ {[%clk 0:00:05.5]} 55...
Ka8 {[%clk 0:00:02.6]} 56. h7 {[%clk 0:00:05.8]} 56... b1=Q+ {[%clk 0:00:02.3]}
57. Qxb1 {[%clk 0:00:06.5]} 57... Ka7 {[%clk 0:00:03.1]} 58. h8=Q {[%clk
0:00:05.5]} 1-0